fUST/lending_fUST_20250121
["ID","MTS","AMOUNT","RATE_DAILY","PERIOD"]
[349729637,1737397846889,-500.0,0.00022054,3]
[349729639,1737397846899,-500.0,0.00022054,3]
[349729641,1737397846908,-1216.12,0.00022054,3]
[349729643,1737397846917,-500.0,0.00022054,3]
[349729644,1737397846927,-500.0,0.00022054,3]
[349729647,1737397846937,-500.0,0.00022054,3]
[349729649,1737397846946,-500.0,0.00022054,3]
[349729651,1737397846956,-500.0,0.00022054,3]
[349729652,1737397846966,-500.0,0.00022054,3]
[349729655,1737397846976,-500.0,0.00022054,3]
[349729657,1737397846986,-500.0,0.00022054,3]
[349729659,1737397846996,-869.36,0.00022054,3]
[349729661,1737397847005,-500.0,0.00022054,3]
[349729663,1737397847014,-500.0,0.00022054,3]
[349729665,1737397847027,-500.0,0.00022054,3]
[349729667,1737397847036,-500.0,0.00022054,3]
[349729669,1737397847045,-500.0,0.00022054,3]
[349729671,1737397847055,-500.0,0.00022054,3]
[349729673,1737397847064,-500.0,0.00022054,3]
[349729675,1737397847074,-500.0,0.00022054,3]
[349729677,1737397847084,-7102.55,0.00022054,3]
[349729679,1737397847093,-346.55106142,0.00022054,3]
[349729681,1737397847103,-500.0,0.00022054,3]
[349729683,1737397847112,-2244.57,0.00022054,3]
[349729685,1737397847121,-2623.26,0.00022054,3]
[349729687,1737397847131,-503.78037635,0.00022054,3]
[349729689,1737397847141,-500.0,0.00022054,3]
[349729691,1737397847152,-500.0,0.00022054,3]
[349729693,1737397847161,-500.0,0.00022054,3]
[349729695,1737397847171,-500.0,0.00022054,3]
[349729697,1737397847180,-6973.87,0.00022054,3]
[349729699,1737397847189,-921.98,0.00022054,3]
[349729701,1737397847199,-1278.41,0.00022054,3]
[349729703,1737397847209,-500.0,0.00022054,3]
[349729705,1737397847219,-1201.78,0.00022054,3]
[349729707,1737397847229,-500.0,0.00022054,3]
[349729709,1737397847244,-500.0,0.00022054,3]
[349729711,1737397847254,-500.0,0.00022054,3]
[349729713,1737397847264,-500.0,0.00022054,3]
[349729714,1737397847275,-500.0,0.00022054,3]
[349729716,1737397847285,-997.68,0.00022054,3]
[349729718,1737397847294,-532.92,0.00022054,3]
[349729720,1737397847305,-500.0,0.00022054,3]
[349729722,1737397847315,-500.0,0.00022054,3]
[349729724,1737397847325,-500.0,0.00022054,3]
[349729726,1737397847338,-500.0,0.00022054,3]
[349729728,1737397847349,-500.0,0.00022054,3]
[349729729,1737397847359,-500.0,0.00022054,3]
[349729730,1737397847371,-3127.95,0.00022054,3]
[349729731,1737397847381,-500.0,0.00022054,3]
[349729732,1737397847390,-500.0,0.00022054,3]
[349729733,1737397847400,-500.0,0.00022054,3]
[349729734,1737397847412,-500.0,0.00022054,3]
[349729735,1737397847422,-486.91169362,0.00022054,3]
[349729736,1737397847432,-500.0,0.00022054,2]
[349729737,1737397847442,-1133.24,0.00022054,3]
[349729738,1737397847452,-351.65239499,0.00022054,3]
[349729739,1737397847461,-500.0,0.00022054,3]
[349729747,1737397847545,-500.0,0.00022054,3]
[349729749,1737397847555,-500.0,0.00022054,3]
[349729751,1737397847565,-500.0,0.00022054,3]
[349729753,1737397847574,-642.2,0.00022054,3]
[349729755,1737397847584,-1140.38,0.00022054,3]
[349729757,1737397847595,-500.0,0.00022054,3]
[349729759,1737397847604,-500.0,0.00022054,3]
[349729761,1737397847614,-2541.1,0.00022054,3]
[349729763,1737397847623,-500.0,0.00022054,3]
[349729765,1737397847633,-500.0,0.00022054,3]
[349729767,1737397847643,-2199.33,0.00022054,3]
[349729769,1737397847653,-202.38956392,0.00022073,2]
[349729771,1737397847662,-151.0,0.000221,6]
[349729773,1737397847671,-151.0,0.000221,5]
[349729775,1737397847681,-151.0,0.000221,6]
[349729777,1737397847691,-1082.59061088,0.00022104,2]
[349729779,1737397847700,-161.273809,0.00022155,2]
[349729781,1737397847709,-520.51052015,0.00022173,2]
[349729783,1737397847719,-500.0,0.00022173,2]
[349729785,1737397847728,-500.0,0.00022173,2]
[349729787,1737397847737,-500.0,0.00022173,2]
[349729789,1737397847747,-500.0,0.00022173,2]
[349729791,1737397847756,-204.10982302,0.00022173,2]
[349729793,1737397847766,-500.0,0.00022173,2]
[349729795,1737397847778,-501.53792323,0.00022173,2]
[349729797,1737397847788,-250.73850434,0.00022173,2]
[349729799,1737397847797,-500.0,0.00022173,2]
[349729801,1737397847806,-421.41216664,0.00022173,2]
[349729803,1737397847815,-500.0,0.00022173,2]
[349729805,1737397847824,-500.0,0.00022173,2]
[349729807,1737397847833,-429.70135844,0.00022173,2]
[349729809,1737397847843,-500.56848764,0.00022173,2]
[349729811,1737397847852,-500.0,0.00022173,2]
[349729813,1737397847861,-625.00138543,0.00022173,2]
[349729815,1737397847870,-500.0,0.00022173,2]
[349729817,1737397847880,-500.0,0.00022173,2]
[349729819,1737397847889,-500.0,0.00022173,2]
[349729821,1737397847898,-260.84069067,0.00022173,2]
[349729823,1737397847908,-500.0,0.00022173,2]
[349729825,1737397847917,-500.0,0.0002219,3]
[349729827,1737397847926,-500.0,0.0002219,3]
[349729829,1737397847935,-500.0,0.0002219,3]
[349729832,1737397847945,-500.0,0.0002219,3]
[349729834,1737397847954,-500.0,0.0002219,3]
[349729836,1737397847963,-500.0,0.0002219,3]
[349729838,1737397847972,-500.0,0.0002219,3]
[349729840,1737397847981,-500.0,0.0002219,3]
[349729842,1737397847991,-500.0,0.0002219,3]
[349729844,1737397848001,-500.0,0.0002219,3]
[349729846,1737397848010,-400.52970098,0.0002219,3]
[349729848,1737397848020,-500.0,0.0002219,3]
[349729850,1737397848030,-500.0,0.0002219,3]
[349729852,1737397848041,-500.0,0.0002219,3]
[349729854,1737397848051,-500.0,0.0002219,3]
[349729856,1737397848062,-500.0,0.0002219,3]
[349729858,1737397848075,-500.0,0.0002219,3]
[349729860,1737397848084,-500.0,0.0002219,3]
[349729862,1737397848095,-500.0,0.0002219,3]
[349729864,1737397848104,-500.0,0.0002219,3]
[349729866,1737397848114,-500.0,0.0002219,3]
[349729868,1737397848123,-500.0,0.0002219,3]
[349729870,1737397848132,-500.0,0.0002219,3]
[349729872,1737397848141,-200.0,0.0002219,3]
[349729874,1737397848151,-500.0,0.0002219,3]
[349729876,1737397848160,-500.0,0.0002219,3]
[349729878,1737397848169,-500.0,0.0002219,3]
[349729880,1737397848179,-500.0,0.0002219,2]
[349729882,1737397848190,-367.84836339,0.0002219,3]
[349729884,1737397848199,-500.0,0.0002219,3]
[349729886,1737397848209,-500.0,0.0002219,3]
[349729888,1737397848218,-500.0,0.0002219,3]
[349729890,1737397848227,-500.0,0.0002219,3]
[349729892,1737397848238,-500.0,0.0002219,3]
[349729895,1737397848247,-500.0,0.0002219,3]
[349729897,1737397848257,-500.0,0.0002219,3]
[349729899,1737397848266,-500.0,0.0002219,3]
[349729901,1737397848278,-500.36756275,0.0002219,3]
[349729902,1737397848287,-500.0,0.0002219,3]
[349729905,1737397848297,-500.0,0.0002219,3]
[349729906,1737397848307,-500.0,0.0002219,3]
[349729909,1737397848322,-500.0,0.0002219,3]
[349729911,1737397848332,-500.82314656,0.0002219,3]
[349729913,1737397848342,-500.0,0.0002219,3]
[349729914,1737397848353,-500.0,0.0002219,3]
[349729917,1737397848365,-501.86170723,0.0002219,3]
[349729918,1737397848375,-500.0,0.0002219,3]
[349729921,1737397848386,-500.0,0.0002219,3]
[349729922,1737397848396,-517.34636823,0.0002219,3]
[349729924,1737397848406,-500.0,0.0002219,3]
[349729926,1737397848416,-500.0,0.0002219,3]
[349729928,1737397848426,-500.0,0.0002219,3]
[349729930,1737397848436,-500.0,0.0002219,3]
[349729932,1737397848447,-501.46143754,0.0002219,3]
[349729934,1737397848457,-269.49770384,0.0002219,3]
[349729937,1737397848473,-230.50229616,0.0002219,3]
[349729939,1737397848483,-243.97730956,0.0002219,3]
[349729941,1737397848493,-269.61369566,0.0002219,3]
[349729944,1737397848510,-230.38630434,0.0002219,3]
[349729946,1737397848522,-500.97605867,0.0002219,3]
[349729948,1737397848532,-500.0,0.0002219,3]
[349729950,1737397848542,-500.0,0.0002219,3]
[349729952,1737397848552,-500.69444023,0.0002219,3]
[349729962,1737397848642,-211.24319676,0.0002219,3]
[349729964,1737397848654,-288.75680324,0.0002219,3]
[349729966,1737397848664,-500.26361018,0.0002219,3]
[349729968,1737397848674,-500.0,0.0002219,3]
[349729971,1737397848685,-500.0,0.0002219,3]
[349729973,1737397848694,-500.0,0.0002219,3]
[349729974,1737397848705,-500.66344465,0.0002219,3]
[349729977,1737397848715,-500.0,0.0002219,3]
[349729979,1737397848725,-500.0,0.0002219,3]
[349729981,1737397848734,-500.0,0.0002219,3]
[349729982,1737397848744,-500.0,0.0002219,3]
[349729985,1737397848754,-500.0,0.0002219,3]
[349729987,1737397848772,-337.64433418,0.0002219,3]
[349729989,1737397848787,-162.35566582,0.0002219,3]
[349729991,1737397848807,-500.0,0.0002219,3]
[349729993,1737397848818,-261.60233558,0.0002219,3]
[349729995,1737397848830,-238.39766442,0.0002219,3]
[349729997,1737397848840,-420.20129202,0.0002219,3]
[349729999,1737397848850,-500.0,0.0002219,3]
[349730001,1737397848859,-500.0,0.0002219,3]
[349730003,1737397848869,-500.0,0.0002219,2]
[349730005,1737397848879,-500.0,0.0002219,3]
[349730007,1737397848889,-500.0,0.0002219,3]
[349730009,1737397848900,-500.0,0.0002219,3]
[349730011,1737397848909,-500.0,0.0002219,3]
[349730013,1737397848920,-500.0,0.0002219,3]
[349730015,1737397848930,-500.0,0.0002219,3]
[349730018,1737397848941,-500.0,0.0002219,3]
[349730020,1737397848951,-557.01767848,0.0002219,3]
[349730022,1737397848961,-500.0,0.0002219,3]
[349730024,1737397848970,-500.0,0.0002219,3]
[349730026,1737397848980,-500.0,0.0002219,3]
[349730028,1737397848991,-501.75716403,0.0002219,3]
[349730030,1737397849002,-500.0,0.0002219,3]
[349730032,1737397849012,-500.0,0.0002219,3]
[349730034,1737397849024,-500.0,0.0002219,3]
[349730036,1737397849033,-500.0,0.0002219,3]
[349730037,1737397849043,-500.0,0.0002219,3]
[349730039,1737397849053,-500.0,0.0002219,3]
[349730041,1737397849062,-500.0,0.0002219,3]
[349730043,1737397849071,-500.0,0.0002219,3]
[349730045,1737397849081,-500.0,0.0002219,3]
[349730047,1737397849091,-500.0,0.0002219,3]
[349730049,1737397849100,-476.44039144,0.0002219,3]
[349730051,1737397849110,-501.60172909,0.0002219,3]
[349730053,1737397849120,-500.0,0.0002219,3]
[349730055,1737397849130,-502.36936712,0.0002219,3]
[349730058,1737397849140,-500.0,0.0002219,3]
[349730059,1737397849149,-575.35366207,0.0002219,3]
[349730062,1737397849160,-500.0,0.0002219,3]
[349730064,1737397849170,-500.0,0.0002219,3]
[349730065,1737397849181,-500.0,0.0002219,3]
[349730067,1737397849191,-500.0,0.0002219,3]
[349730069,1737397849200,-501.89090445,0.0002219,3]
[349730071,1737397849210,-501.74563648,0.0002219,3]
[349730073,1737397849220,-579.24299282,0.0002219,3]
[349730075,1737397849230,-445.99444153,0.0002219,3]
[349730077,1737397849240,-500.0,0.0002219,3]
[349730079,1737397849249,-423.77604798,0.0002219,3]
[349730082,1737397849259,-500.0,0.0002219,3]
[349730084,1737397849272,-500.0,0.0002219,3]
[349730086,1737397849282,-502.13715398,0.0002219,3]
[349730088,1737397849292,-501.31366382,0.0002219,3]
[349730090,1737397849302,-500.0,0.0002219,3]
[349730092,1737397849313,-500.0,0.0002219,3]
[349730094,1737397849323,-503.03276632,0.0002219,3]
[349730096,1737397849337,-208.94187528,0.0002219,3]
[349730098,1737397849355,-500.0,0.0002219,3]
[349730100,1737397849365,-501.99234675,0.0002219,3]
[349730102,1737397849376,-504.02913143,0.0002219,3]
[349730104,1737397849386,-500.0,0.0002219,3]
[349730106,1737397849396,-502.46819966,0.0002219,3]
[349730108,1737397849406,-123.33925565,0.0002219,3]
[349730147,1737397849776,-7365.82594927,0.00021697,2]
[349730149,1737397849786,-621.82,0.00021917,3]
[349730151,1737397849796,-500.0,0.00021917,3]
[349730153,1737397849806,-378.02256598,0.0002219,3]
[349730155,1737397849815,-501.11381639,0.0002219,3]
[349730157,1737397849824,-500.8246132,0.0002219,3]
[349730159,1737397849833,-500.99318999,0.0002219,3]
[349730161,1737397849842,-500.0,0.0002219,3]
[349730163,1737397849851,-500.0,0.0002219,3]
[349730165,1737397849861,-501.19345255,0.0002219,3]
[349730167,1737397849871,-500.0,0.0002219,3]
[349730169,1737397849880,-533.61086748,0.0002219,3]
[349730171,1737397849890,-500.0,0.0002219,3]
[349730173,1737397849899,-504.13357422,0.0002219,3]
[349730175,1737397849909,-500.0,0.0002219,3]
[349730177,1737397849919,-502.46478449,0.0002219,3]
[349730179,1737397849928,-500.0,0.0002219,3]
[349730181,1737397849938,-500.0,0.0002219,3]
[349730183,1737397849947,-165.10139446,0.0002219,3]
[349730185,1737397849956,-500.0,0.0002219,3]
[349730187,1737397849966,-500.0,0.0002219,3]
[349730189,1737397849976,-501.21424012,0.0002219,3]
[349730191,1737397849985,-318.06080614,0.0002219,3]
[349730193,1737397849996,-184.24055545,0.0002219,3]
[349730195,1737397850006,-502.14395657,0.0002219,3]
[349730197,1737397850015,-500.0,0.0002219,3]
[349730199,1737397850025,-501.44706547,0.0002219,3]
[349730201,1737397850034,-500.0,0.0002219,3]
[349730203,1737397850043,-500.0,0.0002219,3]
[349730205,1737397850052,-500.0,0.0002219,7]
[349730206,1737397850061,-503.35786091,0.0002219,3]
[349730207,1737397850070,-500.0,0.0002219,3]
[349730208,1737397850079,-502.05135135,0.0002219,3]
[349730209,1737397850088,-500.0,0.0002219,3]
[349730210,1737397850097,-500.0,0.0002219,3]
[349730211,1737397850120,-14.47659634,0.0002219,3]
[349730212,1737397850142,-485.52340366,0.0002219,3]
[349730213,1737397850163,-501.47475621,0.0002219,3]
[349730215,1737397850183,-507.44729102,0.0002219,3]
[349730218,1737397850201,-367.9569949,0.0002219,3]
[349730221,1737397850218,-501.57378649,0.0002219,3]
[349730223,1737397850234,-429.29616978,0.0002219,3]
[349730227,1737397850253,-70.70383022,0.0002219,3]
[349730229,1737397850271,-501.51787242,0.0002219,3]
[349730232,1737397850290,-192.34365425,0.0002219,3]
[349732152,1737398517521,164.341134,0.00013973,2]
[349732153,1737398589075,321.503294,0.00016604,2]
[349732176,1737398604480,321.503294,0.00016604,2]
[349732177,1737398619304,321.503294,0.00016604,2]
[349732178,1737398634171,321.503294,0.00016604,2]
[349732224,1737398649753,321.503294,0.00016604,2]
[349732225,1737398665203,321.503294,0.00016604,2]
[349732226,1737398680114,321.503294,0.00016604,2]
[349732227,1737398695065,321.503294,0.00016604,2]
[349732228,1737398710612,321.503294,0.00016604,2]
[349732280,1737398726022,321.503294,0.00016604,2]
[349732281,1737398734676,321.503294,0.00016604,2]
[349732283,1737398832159,-2000.0,0.00016772,2]
[349732284,1737398832179,-500.0,0.00016941,2]
[349732285,1737398832201,-500.0,0.00016941,2]
[349732286,1737398832221,-500.0,0.00016941,2]
[349732287,1737398832242,-500.0,0.00016941,2]
[349732288,1737398832264,-300.0,0.00017664,2]
[349732289,1737398832284,-500.0,0.00017666,2]
[349732290,1737398832304,-246.811513,0.00018189,2]
[349732291,1737398832324,-500.0,0.00018596,2]
[349732292,1737398832348,-24900.0,0.00018764,2]
[349732293,1737398832368,-959.3273475,0.000189,2]
[349732294,1737398832388,-1173.78001215,0.00019078,2]
[349732295,1737398832408,-170.503294,0.00019178,2]
[349732296,1737398832430,-420.0,0.0001928,2]
[349732297,1737398832450,-500.0,0.00019574,2]
[349732298,1737398832473,-1173.78001215,0.00019812,2]
[349732299,1737398832494,-170.978,0.0001994,2]
[349732300,1737398832515,-8568.01335492,0.0002,2]
[349732301,1737398832535,-30495.5435196,0.00020401,2]
[349732302,1737398832557,-500.0,0.00020432,2]
[349732303,1737398832678,-1173.78001215,0.00020547,2]
[349732304,1737398832701,-500.0,0.00020604,2]
[349732305,1737398832724,-161.273809,0.00020684,2]
[349732306,1737398832747,-8502.58955453,0.00020907,2]
[349732317,1737398973102,-500.0,0.00020432,2]
[349732318,1737398973128,-935.36075634,0.00020698,2]
[349732387,1737399032761,-394.44286205,0.00020432,2]
[349732413,1737399033018,-105.55713795,0.00020432,2]
[349732415,1737399033029,-161.273809,0.00021264,2]
[349732417,1737399033050,-500.0,0.00021635,2]
[349732419,1737399033062,-318.57083847,0.00021733,7]
[349732421,1737399033072,-181.53020625,0.00021816,2]
[349732423,1737399033087,-733.61250762,0.00021816,2]
[349732425,1737399033099,-1457.88606378,0.00021817,2]
[349732427,1737399033110,-300.0,0.0002186,2]
[349732430,1737399033121,-5676.72281793,0.00021861,2]
[349732432,1737399033140,-2153.45600998,0.00021861,2]
[349732571,1737399034965,74.95241952,0.00024264,120]
[349732575,1737399034993,6000.0,0.00024264,120]
[349732590,1737399038715,-500.0,0.00020228,2]
[349732591,1737399038727,-5069.87072979,0.00021861,2]
[349732592,1737399038741,-153.86,0.000219,2]
[349732593,1737399038751,-253.99344452,0.000219,3]
[349732594,1737399038761,-500.0,0.00021916,2]
[349732595,1737399038774,-357.90726477,0.00021916,2]
[349732596,1737399038784,-500.0,0.00021916,2]
[349732597,1737399038795,-500.0,0.00021916,2]
[349732598,1737399038805,-500.0,0.00021916,2]
[349732599,1737399038815,-500.0,0.00021916,2]
[349732600,1737399038826,-500.0,0.00021916,2]
[349732601,1737399038836,-500.0,0.00021916,2]
[349732602,1737399038845,-500.0,0.00021916,2]
[349732603,1737399038855,-500.0,0.00021916,2]
[349732604,1737399038864,-500.0,0.00021916,2]
[349732605,1737399038874,-500.0,0.00021916,2]
[349732606,1737399038883,-500.0,0.00021916,2]
[349732607,1737399038893,-500.0,0.00021916,2]
[349732608,1737399038903,-500.0,0.00021916,2]
[349732609,1737399038913,-500.0,0.00021916,2]
[349732610,1737399038923,-500.0,0.00021916,2]
[349732611,1737399038932,-500.0,0.00021916,2]
[349732612,1737399038942,-500.0,0.00021916,2]
[349732613,1737399038951,-500.0,0.00021916,2]
[349732614,1737399038961,-500.0,0.00021916,2]
[349732615,1737399038971,-500.0,0.00021916,2]
[349732616,1737399038980,-500.0,0.00021916,2]
[349732617,1737399038990,-500.0,0.00021916,2]
[349732618,1737399038999,-500.0,0.00021916,2]
[349732619,1737399039009,-500.0,0.00021916,2]
[349732620,1737399039019,-500.0,0.00021916,2]
[349732621,1737399039029,-500.0,0.00021916,2]
[349732622,1737399039038,-500.0,0.00021916,2]
[349732623,1737399039048,-500.0,0.00021916,2]
[349732624,1737399039058,-500.0,0.00021916,2]
[349732625,1737399039067,-500.0,0.00021916,2]
[349732626,1737399039079,-500.0,0.00021916,2]
[349732627,1737399039089,-500.0,0.00021916,2]
[349732628,1737399039099,-500.0,0.00021916,2]
[349732629,1737399039108,-500.0,0.00021916,2]
[349732630,1737399039118,-500.0,0.00021916,2]
[349732631,1737399039127,-500.0,0.00021916,2]
[349732632,1737399039137,-500.0,0.00021916,2]
[349732633,1737399039147,-500.0,0.00021916,2]
[349732634,1737399039157,-500.0,0.00021916,2]
[349732635,1737399039167,-500.0,0.00021916,2]
[349732636,1737399039177,-500.0,0.00021916,2]
[349732637,1737399039187,-500.0,0.00021916,2]
[349732638,1737399039196,-500.0,0.00021916,2]
[349732639,1737399039207,-500.0,0.00021916,2]
[349732640,1737399039217,-500.0,0.00021916,2]
[349732641,1737399039227,-500.0,0.00021916,2]
[349732642,1737399039237,-500.0,0.00021916,2]
[349732643,1737399039247,-500.0,0.00021916,2]
[349732644,1737399039257,-500.0,0.00021916,2]
[349732645,1737399039267,-635.74075475,0.00021916,2]
[349732646,1737399039278,-500.0,0.00021916,2]
[349732647,1737399039288,-500.0,0.00021916,2]
[349732648,1737399039297,-500.0,0.00021916,2]
[349732649,1737399039307,-500.0,0.00021916,2]
[349732650,1737399039316,-500.0,0.00021916,2]
[349732651,1737399039327,-500.0,0.00021916,2]
[349732652,1737399039337,-500.0,0.00021916,2]
[349732653,1737399039346,-319.87784194,0.00021916,2]
[349732654,1737399039355,-500.0,0.00021916,2]
[349732655,1737399039365,-173.41465857,0.00021916,2]
[349732656,1737399039375,-500.0,0.00021916,2]
[349732657,1737399039385,-500.0,0.00021916,2]
[349732658,1737399039395,-500.0,0.00021916,2]
[349732659,1737399039406,-500.0,0.00021916,2]
[349732660,1737399039416,-500.0,0.00021916,2]
[349732661,1737399039425,-500.0,0.00021916,2]
[349732662,1737399039435,-500.0,0.00021916,2]
[349732663,1737399039445,-500.0,0.00021916,2]
[349732664,1737399039454,-500.0,0.00021916,2]
[349732665,1737399039464,-500.0,0.00021916,2]
[349732666,1737399039474,-500.0,0.00021916,2]
[349732667,1737399039484,-500.0,0.00021916,2]
[349732668,1737399039494,-500.0,0.00021916,2]
[349732669,1737399039504,-500.0,0.00021916,2]
[349732670,1737399039514,-500.0,0.00021916,2]
[349732671,1737399039523,-500.0,0.00021916,2]
[349732672,1737399039533,-500.0,0.00021916,2]
[349732673,1737399039543,-500.0,0.00021916,2]
[349732674,1737399039552,-500.0,0.00021916,2]
[349732675,1737399039562,-500.0,0.00021916,2]
[349732676,1737399039573,-500.0,0.00021916,2]
[349732677,1737399039583,-500.0,0.00021916,2]
[349732678,1737399039594,-500.0,0.00021916,2]
[349732679,1737399039604,-500.0,0.00021916,2]
[349732680,1737399039614,-500.0,0.00021916,2]
[349732681,1737399039623,-500.0,0.00021916,2]
[349732682,1737399039634,-500.0,0.00021916,2]
[349732683,1737399039643,-500.0,0.00021916,2]
[349732684,1737399039653,-500.0,0.00021916,2]
[349732685,1737399039663,-500.0,0.00021916,2]
[349732686,1737399039672,-500.0,0.00021916,2]
[349732687,1737399039686,-500.0,0.00021916,2]
[349732688,1737399039696,-500.0,0.00021916,2]
[349732689,1737399039706,-500.0,0.00021916,2]
[349732690,1737399039716,-500.0,0.00021916,2]
[349732691,1737399039726,-500.0,0.00021916,2]
[349732692,1737399039736,-500.0,0.00021916,2]
[349732693,1737399039747,-500.0,0.00021916,2]
[349732694,1737399039757,-500.0,0.00021916,2]
[349732695,1737399039767,-500.0,0.00021916,2]
[349732696,1737399039780,-500.0,0.00021916,2]
[349732697,1737399039791,-500.0,0.00021916,2]
[349732698,1737399039801,-500.0,0.00021916,2]
[349732699,1737399039811,-500.0,0.00021916,2]
[349732700,1737399039822,-500.0,0.00021916,2]
[349732701,1737399039833,-378.06961752,0.00021916,2]
[349732702,1737399039843,-500.0,0.00021916,2]
[349732703,1737399039853,-500.0,0.00021916,2]
[349732705,1737399039863,-500.0,0.00021916,2]
[349732707,1737399039873,-500.0,0.00021916,2]
[349732709,1737399039883,-500.0,0.00021916,2]
[349732711,1737399039893,-500.0,0.00021916,2]
[349732713,1737399039902,-307.57341293,0.00021916,2]
[349732714,1737399039912,-500.0,0.00021916,2]
[349732715,1737399039921,-500.0,0.00021916,2]
[349732716,1737399039931,-500.0,0.00021916,2]
[349732718,1737399039940,-500.0,0.00021916,2]
[349732720,1737399039950,-275.35402373,0.00021916,2]
[349732721,1737399039959,-500.0,0.00021916,2]
[349732722,1737399039969,-500.0,0.00021916,2]
[349732723,1737399039979,-500.0,0.00021916,2]
[349732724,1737399039989,-500.0,0.00021916,2]
[349732725,1737399039999,-500.0,0.00021916,2]
[349732726,1737399040008,-500.0,0.00021916,2]
[349732727,1737399040017,-500.0,0.00021916,2]
[349732728,1737399040027,-500.0,0.00021916,2]
[349732729,1737399040037,-500.0,0.00021916,2]
[349732730,1737399040046,-500.0,0.00021916,2]
[349732731,1737399040055,-500.0,0.00021916,2]
[349732732,1737399040064,-500.0,0.00021916,2]
[349732733,1737399040076,-500.0,0.00021916,2]
[349732734,1737399040086,-500.0,0.00021916,2]
[349732735,1737399040095,-500.0,0.00021916,2]
[349732736,1737399040104,-500.0,0.00021916,2]
[349732737,1737399040114,-500.0,0.00021916,2]
[349732738,1737399040123,-500.0,0.00021916,2]
[349732739,1737399040132,-500.0,0.00021916,2]
[349732740,1737399040142,-500.0,0.00021916,2]
[349732741,1737399040153,-500.0,0.00021916,2]
[349732742,1737399040163,-500.0,0.00021916,2]
[349732743,1737399040174,-500.0,0.00021916,2]
[349732744,1737399040184,-500.0,0.00021916,2]
[349732745,1737399040193,-500.0,0.00021916,2]
[349732746,1737399040202,-500.0,0.00021916,2]
[349732747,1737399040211,-500.0,0.00021916,2]
[349732748,1737399040220,-500.0,0.00021916,2]
[349732749,1737399040230,-500.0,0.00021916,2]
[349732750,1737399040239,-500.0,0.00021916,2]
[349732751,1737399040249,-500.0,0.00021916,2]
[349732752,1737399040258,-500.0,0.00021916,2]
[349732753,1737399040267,-500.0,0.00021916,2]
[349732754,1737399040277,-500.0,0.00021916,2]
[349732755,1737399040287,-500.0,0.00021916,2]
[349732756,1737399040296,-578.90057744,0.00021916,2]
[349732757,1737399040306,-380.19152732,0.00021916,2]
[349732758,1737399040316,-500.0,0.00021916,2]
[349732759,1737399040326,-500.0,0.00021916,2]
[349732760,1737399040336,-500.0,0.00021916,2]
[349732761,1737399040345,-500.0,0.00021916,2]
[349732762,1737399040355,-491.49051762,0.00021916,2]
[349732763,1737399040365,-500.0,0.00021916,2]
[349732764,1737399040374,-500.0,0.00021916,2]
[349732765,1737399040473,-500.0,0.00021916,2]
[349732766,1737399040483,-500.0,0.00021916,2]
[349732767,1737399040493,-500.0,0.00021916,2]